bitfinex-derivatives/quotes_BTCF0:USTF0_20241231
["timestamp","ask_amount","ask_price","bid_price","bid_amount"]
[1735672224234,0.15481511,94151.0,94150.0,0.054173]
[1735672225428,0.15481511,94151.0,94150.0,0.053173]
[1735672225628,0.15481511,94151.0,94150.0,0.055173]
[1735672225821,0.20798711,94151.0,94150.0,0.055173]
[1735672226335,0.12191511,94151.0,94150.0,0.053173]
[1735672226833,0.08781511,94151.0,94150.0,0.053173]
[1735672227034,0.08781511,94151.0,94150.0,1.553173]
[1735672227334,0.00166326,94160.0,94150.0,1.553173]
[1735672227335,6.96e-05,94160.0,94159.0,0.053168]
[1735672227535,6.96e-05,94160.0,94159.0,0.413968]
[1735672230430,6e-07,94160.0,94159.0,0.713968]
[1735672230634,0.0020006,94160.0,94159.0,0.713968]
[1735672231726,0.0020006,94160.0,94159.0,0.413968]
[1735672235033,0.31584511,94184.0,94159.0,0.413968]
[1735672235034,0.31584511,94184.0,94159.0,0.6608]
[1735672235341,0.31584511,94184.0,94183.0,0.053154]
[1735672236243,0.31784511,94184.0,94183.0,0.053154]
[1735672236836,0.31784511,94184.0,94183.0,0.054154]
[1735672238046,0.31984511,94184.0,94183.0,0.054154]
[1735672238836,0.31984511,94184.0,94183.0,0.07377805]
[1735672239346,0.004,94184.0,94183.0,0.07377805]
[1735672241939,0.004,94184.0,94183.0,0.43457805]
[1735672244135,0.1,94200.0,94191.0,0.053149]
[1735672244448,0.413933,94220.0,94199.0,0.413945]
[1735672244638,0.3608,94220.0,94219.0,0.04950791]
[1735672246033,0.3608,94220.0,94219.0,0.05050791]
[1735672247241,0.3608,94220.0,94219.0,0.05150791]
[1735672247851,0.3608,94239.0,94225.0,0.006258]
[1735672248148,0.3608,94239.0,94233.0,0.053125]
[1735672248149,0.053126,94234.0,94233.0,0.053125]
[1735672249857,0.053126,94234.0,94233.0,0.001]
[1735672250565,0.43386359,94239.0,94233.0,0.002]
[1735672250777,0.38074059,94239.0,94238.0,0.053123]
[1735672251744,0.3608,94239.0,94238.0,0.053123]
[1735672252251,0.0341,94248.0,94238.0,0.053123]
[1735672252252,0.0341,94248.0,94245.0,0.053119]
[1735672252643,0.0341,94248.0,94247.0,0.053118]
[1735672254354,0.0341,94248.0,94247.0,0.054118]
[1735672255153,0.087217,94248.0,94247.0,0.054118]
[1735672255459,0.053123,94238.0,94234.0,0.053125]
[1735672255657,0.3608,94238.0,94221.0,0.053132]
[1735672255847,0.3608,94238.0,94237.0,0.053124]
[1735672257849,0.3618,94238.0,94237.0,0.053124]
[1735672258059,0.3816776,94238.0,94237.0,0.053124]
[1735672260548,0.3618,94238.0,94237.0,0.053124]
[1735672261359,0.001,94238.0,94237.0,0.053124]
[1735672262554,0.001,94238.0,94226.0,0.3608]
[1735672262860,0.053125,94235.0,94234.0,0.053125]
[1735672263757,0.001,94238.0,94225.0,0.05313]
[1735672263955,0.05313,94227.0,94217.0,0.053135]
[1735672264162,0.05313,94226.0,94225.0,0.05313]
[1735672264352,0.08483,94226.0,94225.0,0.05313]
[1735672264549,0.0317,94226.0,94225.0,0.05313]
[1735672264759,0.0342,94231.0,94230.0,0.053128]
[1735672265957,0.0352,94231.0,94230.0,0.053128]
[1735672267453,0.001,94231.0,94230.0,0.053128]
[1735672268458,0.053124,94237.0,94236.0,0.053124]
[1735672270065,0.053127,94231.0,94230.0,0.007]
[1735672270271,0.3608,94231.0,94230.0,0.060128]
[1735672271170,0.3608,94231.0,94230.0,0.053128]
[1735672272056,0.3608,94231.0,94230.0,0.055128]
[1735672272258,0.3608,94231.0,94230.0,0.059128]
[1735672272660,0.3608,94231.0,94230.0,1.57857541]
[1735672272962,0.3608,94231.0,94230.0,1.563128]
[1735672273370,0.053124,94237.0,94230.0,1.563128]
[1735672273570,0.053124,94237.0,94236.0,0.053124]
[1735672275056,0.053124,94237.0,94236.0,0.060124]
[1735672276178,0.053124,94237.0,94236.0,0.058124]
[1735672280972,0.3608,94239.0,94238.0,0.053123]
[1735672282167,0.3608,94239.0,94238.0,0.055123]
[1735672282873,0.3608,94239.0,94238.0,0.056123]
[1735672283375,0.053121,94242.0,94238.0,0.416923]
[1735672283566,0.053121,94242.0,94241.0,0.053121]
[1735672284966,0.10430476,94247.0,94246.0,0.053118]
[1735672285877,0.46510476,94247.0,94246.0,0.053118]
[1735672286075,0.053121,94243.0,94242.0,0.053121]
[1735672288581,0.053121,94243.0,94242.0,0.054121]
[1735672289883,0.43586048,94247.0,94242.0,0.054121]
[1735672289884,0.09784278,94246.0,94242.0,0.054121]
[1735672290177,0.12051649,94246.0,94245.0,0.053119]
[1735672290371,0.09784278,94246.0,94245.0,0.053119]
[1735672290782,0.09784278,94246.0,94245.0,1.553119]
[1735672290974,0.09784278,94254.0,94245.0,1.553119]
[1735672291171,0.09784278,94254.0,94246.0,0.033]
[1735672291372,0.34742962,94265.0,94246.0,0.033]
[1735672291373,0.00159095,94320.0,94299.0,0.053089]
[1735672291570,0.16316265,94325.0,94299.0,0.3608]
[1735672291778,0.01840598,94321.0,94313.0,0.413881]
[1735672291979,0.16316265,94325.0,94313.0,0.413881]
[1735672292370,0.01801947,94316.0,94299.0,0.3608]
[1735672292587,0.0015909,94333.0,94313.0,0.3608]
[1735672292783,0.0342,94329.0,94323.0,0.3608]
[1735672293578,0.087272,94329.0,94323.0,0.3608]
[1735672293771,0.0342,94329.0,94323.0,0.3608]
[1735672293971,0.053072,94328.0,94323.0,0.3608]
[1735672294677,0.395,94329.0,94315.0,0.3608]
[1735672294878,0.053075,94324.0,94315.0,0.3608]
[1735672295184,0.053074,94325.0,94323.0,0.001]
[1735672295382,0.053074,94325.0,94323.0,0.00092287]
[1735672296677,0.395,94329.0,94318.0,0.053078]
[1735672296882,0.053076,94322.0,94318.0,0.053078]
[1735672298188,0.053077,94320.0,94318.0,0.053078]
[1735672298387,0.053077,94320.0,94318.0,0.054078]
[1735672298582,0.053077,94320.0,94318.0,0.001]
[1735672298989,0.053074,94326.0,94318.0,0.001]
[1735672299180,0.0342,94329.0,94328.0,0.053072]
[1735672299685,0.0342,94329.0,94328.0,0.413872]
[1735672300785,0.0015909,94333.0,94332.0,0.05307]
[1735672301183,0.0015909,94333.0,94329.0,0.053072]
[1735672301588,0.01835802,94333.0,94329.0,0.053072]
[1735672301988,0.01835802,94333.0,94328.0,0.3618]
[1735672301989,0.01835802,94333.0,94330.0,0.053071]
[1735672302592,0.07142802,94333.0,94330.0,0.053071]
[1735672303789,0.0326,94332.0,94330.0,0.053071]
[1735672305199,0.08567,94332.0,94330.0,0.053071]
[1735672306192,0.053071,94331.0,94330.0,0.053071]
[1735672306389,0.053072,94329.0,94328.0,0.3608]
[1735672306595,0.053072,94329.0,94328.0,0.413872]
[1735672306996,0.0326,94332.0,94331.0,0.053071]
[1735672307189,0.01835802,94333.0,94331.0,0.053071]
[1735672307595,0.01835802,94333.0,94330.0,0.008]
[1735672307596,0.053071,94331.0,94330.0,0.008]
[1735672308091,0.053071,94331.0,94330.0,0.007]
[1735672309995,0.053071,94331.0,94328.0,0.413872]
[1735672310187,0.053071,94331.0,94329.0,0.053072]
[1735672310702,0.053071,94331.0,94330.0,0.003]
[1735672311300,0.053071,94331.0,94330.0,0.002]
[1735672311691,0.053071,94331.0,94329.0,0.054072]
[1735672311893,0.053064,94344.0,94329.0,0.054072]
[1735672312094,0.053064,94344.0,94330.0,0.053071]
[1735672312095,0.05049201,94339.0,94330.0,0.053071]
[1735672312398,0.053071,94332.0,94330.0,0.053071]
[1735672312587,0.053071,94332.0,94331.0,0.053071]
[1735672312792,0.053071,94332.0,94330.0,0.0311]
[1735672312793,0.053064,94344.0,94330.0,0.0311]
[1735672312993,0.05307,94333.0,94332.0,0.05307]
[1735672314194,0.05307,94333.0,94332.0,0.05607]
[1735672315098,0.06969221,94333.0,94332.0,0.05607]
[1735672316593,0.06969221,94333.0,94332.0,0.05907]
[1735672316793,0.06969221,94333.0,94332.0,0.05707]
[1735672316994,0.06969221,94333.0,94332.0,0.06407]
[1735672317197,0.06969221,94333.0,94332.0,0.06007]
[1735672317398,0.06969221,94333.0,94332.0,0.05507]
[1735672317701,0.06969221,94333.0,94332.0,0.06007]
[1735672317894,0.06969221,94333.0,94332.0,0.007]
[1735672318095,0.06969221,94333.0,94332.0,0.006]
[1735672318498,0.06969221,94333.0,94332.0,0.05907]
[1735672319706,0.06969221,94333.0,94332.0,0.05807]
[1735672320021,0.06969221,94333.0,94332.0,0.05707]
[1735672320200,0.01662221,94333.0,94332.0,0.05707]
[1735672320395,0.053067,94337.0,94336.0,0.053068]
[1735672320595,0.053067,94337.0,94336.0,0.413868]
[1735672321493,0.06968275,94337.0,94336.0,0.413868]
[1735672322207,0.06968275,94337.0,94336.0,0.84617959]
[1735672322595,0.06968275,94337.0,94336.0,0.84717959]
[1735672322999,0.06968275,94337.0,94336.0,1.22884971]
[1735672323299,0.053073,94327.0,94326.0,0.3608]
[1735672324599,0.053073,94327.0,94326.0,0.3648]
[1735672326402,0.06927141,94327.0,94326.0,0.3648]
[1735672326600,0.06927141,94327.0,94326.0,0.3668]
[1735672327398,0.06927141,94327.0,94326.0,0.006]
[1735672328306,0.053078,94318.0,94317.0,0.3608]
[1735672329607,0.053078,94318.0,94317.0,0.3648]
[1735672329800,0.053078,94318.0,94317.0,0.417879]
[1735672330006,0.054078,94318.0,94317.0,0.424879]
[1735672330401,0.054078,94318.0,94317.0,0.064079]
[1735672331211,0.054078,94318.0,94317.0,0.011]
[1735672333401,0.053078,94318.0,94317.0,0.001]
[1735672333610,0.053078,94318.0,94317.0,0.003]
[1735672343317,0.03012825,94327.0,94317.0,0.003]
[1735672343509,0.053078,94318.0,94317.0,0.003]
[1735672352513,0.01683634,94327.0,94317.0,0.003]
[1735672352715,0.3608,94328.0,94327.0,0.053073]
[1735672352915,0.13992749,94340.0,94320.0,0.3608]
[1735672353114,0.053074,94325.0,94323.0,0.053075]
[1735672353317,0.053074,94325.0,94320.0,0.3608]
[1735672353519,0.053074,94325.0,94324.0,0.053075]
[1735672353917,0.08686149,94330.0,94320.0,0.3608]
[1735672353918,0.13993349,94330.0,94320.0,0.3608]
[1735672354111,0.13993349,94330.0,94329.0,0.053072]
[1735672355148,0.14093349,94330.0,94329.0,0.053072]
[1735672355910,0.14093349,94330.0,94320.0,0.3608]
[1735672355911,0.053076,94321.0,94320.0,0.3608]
[1735672357124,0.053076,94321.0,94320.0,0.413877]
[1735672358137,0.053076,94321.0,94320.0,0.414877]
[1735672358325,0.053076,94321.0,94320.0,0.416877]
[1735672359227,0.053076,94321.0,94320.0,0.3638]
[1735672361228,0.0793791,94321.0,94320.0,0.3638]
[1735672362820,0.0793791,94321.0,94320.0,0.003]
[1735672368222,0.0793791,94321.0,94320.0,0.056077]
[1735672369821,0.0793791,94321.0,94320.0,0.055077]
[1735672370031,0.0793791,94321.0,94320.0,0.056077]
[1735672370653,0.0793791,94321.0,94320.0,0.055077]
[1735672370931,0.0793791,94321.0,94320.0,0.056077]
[1735672372127,0.0793791,94321.0,94320.0,0.054077]
[1735672372323,0.0793791,94321.0,94320.0,0.055077]
[1735672372935,0.0793791,94321.0,94320.0,0.002]
[1735672374430,0.0793791,94321.0,94320.0,0.001]
[1735672374622,0.0793791,94321.0,94320.0,0.002]
[1735672381240,0.0793791,94321.0,94320.0,0.3628]
[1735672383238,0.0793791,94321.0,94311.0,0.28228844]
[1735672383239,0.053081,94312.0,94311.0,0.28228844]
[1735672385230,0.053081,94312.0,94311.0,0.28528844]
[1735672385429,0.053081,94312.0,94311.0,0.29028844]
[1735672386126,0.053081,94312.0,94311.0,0.008]
[1735672388443,0.03330261,94320.0,94311.0,0.008]
[1735672388631,0.3608,94321.0,94320.0,0.053077]
[1735672389742,0.02548218,94325.0,94319.0,0.053077]
[1735672390038,0.053075,94323.0,94320.0,0.001]
[1735672390436,0.053076,94321.0,94320.0,0.001]
[1735672390739,0.053076,94321.0,94320.0,0.054077]
[1735672391843,0.053076,94321.0,94320.0,0.055077]
[1735672392138,0.053076,94321.0,94320.0,0.002]
[1735672392339,0.053076,94321.0,94320.0,0.001]
[1735672392639,0.053076,94321.0,94320.0,0.002]
[1735672393340,0.053076,94321.0,94320.0,0.003]
[1735672394145,0.053076,94321.0,94320.0,0.002]
[1735672399750,0.053076,94321.0,94320.0,0.055077]
[1735672400442,0.053074,94325.0,94323.0,0.053075]
[1735672400846,0.14752779,94339.0,94336.0,0.053068]
[1735672401041,0.11423556,94339.0,94338.0,0.053067]
[1735672401644,0.0257786,94343.0,94342.0,0.053064]
[1735672401847,0.05306,94350.0,94337.0,0.0326]
[1735672402036,0.05306,94350.0,94345.0,0.3608]
[1735672402239,0.12006143,94354.0,94345.0,0.3608]
[1735672402439,0.02614752,94354.0,94353.0,0.313858]
[1735672402641,0.3608,94366.0,94354.0,0.053057]
[1735672402842,0.053057,94356.0,94353.0,0.313858]
[1735672403046,0.053057,94356.0,94346.0,0.0661]
[1735672403246,0.053057,94356.0,94347.0,0.053062]
[1735672403446,0.053057,94356.0,94350.0,0.053059]
[1735672403750,0.003,94354.0,94347.0,0.053062]
[1735672403941,0.003,94354.0,94352.0,0.053059]
[1735672404641,0.056057,94356.0,94352.0,0.053059]
[1735672405163,0.007,94354.0,94352.0,0.053059]
[1735672405547,0.003,94356.0,94352.0,0.053059]
[1735672405747,0.053057,94355.0,94352.0,0.057059]
[1735672406149,0.003,94354.0,94352.0,0.057059]
[1735672406344,0.056058,94354.0,94352.0,0.057059]
[1735672406551,0.056058,94354.0,94353.0,0.053058]
[1735672406848,0.053058,94354.0,94353.0,0.053058]
[1735672407852,0.053058,94354.0,94353.0,0.055058]
[1735672408550,0.053058,94354.0,94353.0,0.058058]
[1735672410352,0.02548448,94356.0,94355.0,0.053057]
[1735672410654,0.053055,94360.0,94355.0,0.413857]
[1735672410853,0.053055,94360.0,94356.0,0.0318]
[1735672411443,0.053056,94358.0,94356.0,0.0318]
[1735672411642,0.3608,94364.0,94355.0,0.3628]
[1735672411847,0.053057,94356.0,94355.0,0.002]
[1735672412263,0.053057,94356.0,94353.0,0.002]
[1735672412443,0.053058,94354.0,94346.0,0.0661]
[1735672412749,0.053058,94354.0,94350.0,0.05306]
[1735672413450,0.053058,94354.0,94353.0,0.002]
[1735672414148,0.053058,94354.0,94350.0,0.002]
[1735672414347,0.053059,94352.0,94350.0,0.002]
[1735672414856,0.0323,94361.0,94350.0,0.002]
[1735672415054,0.053059,94351.0,94350.0,0.002]
[1735672415845,0.053059,94351.0,94350.0,0.05806]
[1735672416044,0.3608,94362.0,94350.0,0.005]
[1735672416353,0.053057,94356.0,94353.0,0.054058]
[1735672416557,0.053054,94361.0,94353.0,0.054058]
[1735672416749,0.03316104,94367.0,94353.0,0.001]
[1735672416948,0.053055,94359.0,94357.0,0.053056]
[1735672417653,0.053055,94358.0,94357.0,0.053056]
[1735672418052,0.053055,94358.0,94357.0,0.055056]
[1735672418383,0.03316104,94371.0,94357.0,0.002]
[1735672418551,0.382986,94372.0,94361.0,0.053053]
[1735672418744,0.053053,94362.0,94361.0,0.053053]
[1735672418943,0.382986,94372.0,94360.0,0.3608]
[1735672419252,0.053054,94361.0,94360.0,0.3608]
[1735672419557,0.053055,94358.0,94357.0,0.002]
[1735672420659,0.053052,94365.0,94357.0,0.001]
[1735672420858,0.053055,94358.0,94357.0,0.001]
[1735672421647,0.053055,94358.0,94357.0,0.003]
[1735672422252,0.053058,94353.0,94352.0,0.3608]
[1735672423459,0.0337,94360.0,94339.0,0.3608]
[1735672423666,0.05307,94333.0,94332.0,0.0343]
[1735672423959,0.053067,94339.0,94333.0,0.053069]
[1735672424159,0.053067,94338.0,94337.0,0.3608]
[1735672424348,0.053059,94352.0,94337.0,0.3608]
[1735672424547,0.053065,94342.0,94339.0,0.053066]
[1735672424962,0.053065,94341.0,94339.0,0.053066]
[1735672425153,0.053066,94340.0,94339.0,0.053066]
[1735672425554,0.053066,94340.0,94339.0,0.057066]
[1735672426251,0.053066,94340.0,94339.0,0.053066]
[1735672426452,0.053066,94340.0,94339.0,0.056066]
[1735672426956,0.02034728,94352.0,94342.0,0.053064]
[1735672427158,0.053063,94344.0,94342.0,0.053064]
[1735672428556,0.05429934,94353.0,94342.0,0.057064]
[1735672428958,0.053064,94344.0,94342.0,0.057064]
[1735672429352,0.053064,94343.0,94342.0,0.004]
[1735672429756,0.053064,94343.0,94342.0,0.006]
[1735672430061,0.053064,94343.0,94342.0,0.007]
[1735672431256,0.053064,94343.0,94342.0,0.006]
[1735672432861,0.053064,94343.0,94342.0,0.002]
[1735672433066,0.053064,94343.0,94342.0,0.005]
[1735672435666,0.07294162,94343.0,94342.0,0.005]
[1735672439060,0.07294162,94343.0,94342.0,0.004]
[1735672440073,0.07294162,94343.0,94342.0,0.001]
[1735672440278,0.07294162,94343.0,94342.0,0.003]
[1735672442969,0.07294162,94343.0,94342.0,0.006]
[1735672443464,0.07294162,94343.0,94342.0,0.001]
[1735672443665,0.053065,94341.0,94340.0,0.3608]
[1735672443863,0.05307,94333.0,94332.0,0.0343]
[1735672446065,0.05307,94333.0,94332.0,0.0423]
[1735672446469,0.08651958,94352.0,94332.0,0.0423]
[1735672446669,0.08651958,94352.0,94339.0,0.3608]
[1735672446670,0.053066,94340.0,94339.0,0.3608]
[1735672449172,0.053066,94340.0,94339.0,0.3638]
[1735672449881,0.053066,94340.0,94339.0,0.3618]
[1735672450064,0.053066,94340.0,94339.0,0.3628]
[1735672450267,0.02132104,94354.0,94339.0,0.3628]
[1735672450471,0.12021958,94360.0,94344.0,0.053063]
[1735672450677,0.053061,94348.0,94344.0,0.053063]
[1735672451180,0.053061,94348.0,94345.0,0.053063]
[1735672451688,0.053062,94347.0,94345.0,0.053063]
[1735672452883,0.054062,94347.0,94345.0,0.053063]
[1735672453382,0.053062,94347.0,94345.0,0.053063]
[1735672453568,0.053062,94347.0,94345.0,0.055063]
[1735672455182,0.02079483,94353.0,94345.0,0.055063]
[1735672455183,0.053062,94346.0,94345.0,0.055063]
[1735672455479,0.053062,94346.0,94345.0,0.056063]
[1735672456381,0.053062,94346.0,94345.0,0.055063]
[1735672456582,0.053062,94346.0,94345.0,0.056063]
[1735672457778,0.053062,94346.0,94345.0,0.416863]
[1735672458677,0.053062,94346.0,94345.0,0.3638]
[1735672459186,0.053062,94346.0,94345.0,0.003]
[1735672460178,0.053062,94346.0,94345.0,0.001]
[1735672460793,0.053062,94346.0,94334.0,0.3608]
[1735672460971,0.053062,94346.0,94345.0,0.003]
[1735672463376,0.055062,94346.0,94345.0,0.003]
[1735672463979,0.002,94346.0,94345.0,0.003]
[1735672464184,0.002,94346.0,94345.0,0.056063]
[1735672464585,0.002,94346.0,94345.0,0.053063]
[1735672465477,0.053061,94348.0,94345.0,0.056063]
[1735672465679,0.053062,94346.0,94345.0,0.006]
[1735672465985,0.053062,94346.0,94345.0,0.008]
[1735672467183,0.053062,94346.0,94345.0,0.006]
[1735672467787,0.053062,94346.0,94345.0,0.004]
[1735672471594,0.053062,94346.0,94345.0,0.0010768]
[1735672471887,0.053072,94328.0,94321.0,0.091876]
[1735672472087,0.053073,94327.0,94316.0,0.0395]
[1735672473385,0.053073,94327.0,94326.0,0.00859019]
[1735672474085,0.053073,94327.0,94326.0,0.01259019]
[1735672477087,0.07805047,94327.0,94326.0,0.01259019]
[1735672498701,0.43885047,94327.0,94306.0,0.3608]
[1735672498903,0.0567776,94316.0,94306.0,0.3608]
[1735672499098,0.053078,94318.0,94315.0,0.41388]
[1735672499499,0.0567776,94325.0,94315.0,0.41388]
[1735672499708,0.053079,94317.0,94315.0,0.41388]
[1735672500709,0.053079,94317.0,94315.0,0.41888]
[1735672501802,0.053079,94317.0,94315.0,0.42788]
[1735672502217,0.053079,94317.0,94315.0,0.41888]
[1735672502512,0.053079,94316.0,94315.0,0.3688]
[1735672503704,0.053079,94316.0,94315.0,0.3678]
[1735672505121,0.053079,94316.0,94315.0,0.3628]
[1735672505419,0.053079,94316.0,94315.0,0.006]
[1735672505823,0.053079,94316.0,94315.0,0.005]
[1735672506029,0.08422233,94316.0,94315.0,0.0013469]
[1735672506531,0.053087,94302.0,94301.0,0.22936176]
[1735672507032,0.053084,94308.0,94301.0,0.0398]
[1735672507248,0.02182636,94326.0,94315.0,0.001]
[1735672507418,0.02182636,94326.0,94319.0,0.3608]
[1735672507419,0.053077,94320.0,94319.0,0.3608]
[1735672509430,0.053077,94320.0,94319.0,0.3618]
[1735672509628,0.053077,94320.0,94319.0,0.3628]
[1735672510418,0.053077,94320.0,94319.0,0.002]
[1735672511527,0.053077,94320.0,94301.0,0.0398]
[1735672511727,0.053088,94300.0,94299.0,0.36239065]
[1735672512926,0.054088,94300.0,94299.0,0.37139065]
[1735672513335,0.054088,94300.0,94299.0,0.37639065]
[1735672514632,0.08618608,94300.0,94299.0,0.37639065]
[1735672517430,0.08618608,94300.0,94299.0,0.42947965]
[1735672522926,0.08618608,94300.0,94299.0,0.37639065]
[1735672524445,0.08618608,94300.0,94299.0,0.3748]
[1735672527346,0.001,94300.0,94299.0,0.427889]
[1735672528451,0.001,94300.0,94299.0,0.3748]
[1735672528452,0.054088,94300.0,94299.0,0.3748]
[1735672528642,0.054088,94300.0,94287.0,0.3608]
[1735672528643,0.053089,94299.0,94287.0,0.3608]
[1735672528947,0.053095,94288.0,94287.0,0.3608]
[1735672529575,0.053091,94295.0,94282.0,0.18956176]
[1735672529850,0.053098,94283.0,94282.0,0.18956176]
[1735672530547,0.053099,94281.0,94280.0,0.00159081]
[1735672530752,0.3608,94282.0,94262.0,0.3608]
[1735672531049,0.053109,94263.0,94262.0,0.3608]
[1735672531453,0.053111,94260.0,94256.0,0.053113]
[1735672531646,0.08652053,94272.0,94256.0,0.053113]
[1735672531958,0.053113,94256.0,94255.0,0.3608]
[1735672532348,0.053114,94254.0,94252.0,0.3608]
[1735672532645,0.08652053,94265.0,94252.0,0.3608]
[1735672532646,0.053115,94253.0,94252.0,0.3608]
[1735672533445,0.092399,94281.0,94258.0,0.053111]
[1735672533651,0.053106,94269.0,94264.0,0.413908]
[1735672533853,0.053106,94269.0,94265.0,0.0393]
[1735672534348,0.02749266,94273.0,94265.0,0.0393]
[1735672534546,0.08652053,94280.0,94265.0,0.0393]
[1735672534547,0.053106,94268.0,94265.0,0.0393]
[1735672534949,0.053106,94268.0,93471.0,0.10544153]
[1735672534950,0.053116,94250.0,94230.0,0.00056]
[1735672535255,0.053122,94241.0,94227.0,0.3608]
[1735672535457,0.3608,94250.0,94236.0,0.3608]
[1735672535644,0.3608,94258.0,94244.0,0.3608]
[1735672535841,0.053107,94266.0,94253.0,0.3608]
[1735672536147,0.413907,94267.0,94254.0,0.0399]
[1735672536350,0.053107,94266.0,94260.0,0.05311]
[1735672536747,0.3608,94267.0,94254.0,0.0792]
[1735672536748,0.3608,94267.0,94254.0,0.0399]
[1735672536955,0.053115,94252.0,94246.0,0.053118]
[1735672537156,0.053117,94249.0,94247.0,0.053117]
[1735672537354,0.053117,94248.0,94247.0,0.053117]
[1735672538148,0.053117,94248.0,94247.0,1.553117]
[1735672538352,0.3608,94255.0,94246.0,0.005]
[1735672538551,0.053118,94247.0,94246.0,0.005]
[1735672538852,0.24431271,94255.0,94246.0,0.005]
[1735672539050,0.24431271,94255.0,94245.0,0.0393]
[1735672539051,0.053118,94246.0,94245.0,0.0393]
[1735672540156,0.413918,94246.0,94245.0,0.0393]
[1735672540543,0.4418044,94246.0,94245.0,0.0393]
[1735672541576,0.4418044,94246.0,94245.0,0.0413]
[1735672541743,0.4418044,94246.0,94245.0,0.0453]
[1735672541943,0.4418044,94246.0,94245.0,0.006]
[1735672547454,0.0810044,94246.0,94245.0,0.006]
[1735672551166,0.4418044,94246.0,94245.0,0.006]
[1735672554172,0.053129,94227.0,94226.0,0.0408918]
[1735672555278,0.054129,94227.0,94226.0,0.0488918]
[1735672555669,0.3608,94232.0,94226.0,0.0548918]
[1735672555978,0.053129,94227.0,94226.0,0.0548918]
[1735672556981,0.053129,94227.0,94226.0,0.0498918]
[1735672557481,0.053129,94227.0,94226.0,0.0468918]
[1735672557668,0.054129,94227.0,94226.0,0.0468918]
[1735672558067,0.053129,94227.0,94226.0,0.0408918]
[1735672558272,0.001,94227.0,94226.0,0.0448918]
[1735672558470,0.44732053,94240.0,94227.0,0.053129]
[1735672558666,0.44732053,94240.0,94239.0,0.053122]
[1735672558871,0.3608,94240.0,94239.0,0.053122]
[1735672559066,0.3608,94240.0,94239.0,1.553122]
[1735672559278,0.3608,94240.0,94239.0,0.053122]
[1735672560180,0.413922,94240.0,94239.0,0.056122]
[1735672560397,0.413922,94240.0,94239.0,0.003]
[1735672560570,0.413922,94240.0,94239.0,0.056122]
[1735672560876,0.3854663,94248.0,94239.0,0.056122]
[1735672561086,0.3854663,94248.0,94247.0,0.053118]
[1735672561576,0.0777833,94248.0,94247.0,0.053118]
[1735672562883,0.0777833,94248.0,94247.0,0.095318]
[1735672563179,0.0777833,94248.0,94247.0,0.23176176]
[1735672563773,0.0787833,94248.0,94247.0,0.23176176]
[1735672563980,0.0797833,94248.0,94247.0,0.23176176]
[1735672564779,0.0787833,94248.0,94247.0,0.23176176]
[1735672564980,0.0787833,94248.0,94247.0,0.0422]
[1735672565867,0.0777833,94248.0,94247.0,0.0422]
[1735672566477,0.0797833,94248.0,94247.0,0.0422]
[1735672569876,0.053118,94247.0,94246.0,0.19058058]
[1735672570075,0.093318,94247.0,94246.0,0.19058058]
[1735672570674,0.053121,94242.0,94241.0,0.19058058]
[1735672571690,0.053126,94233.0,94232.0,0.19058058]
[1735672571981,0.413926,94233.0,94232.0,0.19058058]
[1735672573077,0.413926,94233.0,94227.0,0.19058058]
[1735672573078,0.053129,94228.0,94227.0,0.19058058]
[1735672573788,0.06350986,94232.0,94226.0,0.0015918]
[1735672573981,0.053129,94227.0,94226.0,0.0015918]
[1735672575490,0.053129,94227.0,94218.0,0.0397]
[1735672575785,0.053134,94219.0,94218.0,0.0397]
[1735672576979,0.053134,94219.0,94218.0,0.0437]
[1735672577613,0.053134,94219.0,94218.0,0.0467]
[1735672577614,0.001,94219.0,94218.0,0.0467]
[1735672577979,0.001,94219.0,94218.0,0.099834]
[1735672579080,0.054134,94219.0,94218.0,0.0467]
[1735672591002,0.3608,94225.0,94224.0,0.053131]
[1735672591489,0.08652053,94240.0,94237.0,0.053123]
[1735672591490,0.053122,94240.0,94237.0,0.053123]
[1735672591696,0.053122,94240.0,94239.0,0.053122]
[1735672592398,0.053122,94240.0,94228.0,0.3608]
[1735672592609,0.02455001,94240.0,94228.0,0.3608]
[1735672592789,0.05312,94244.0,94239.0,0.053122]
[1735672593095,0.05312,94243.0,94239.0,0.053122]
[1735672593595,0.05312,94243.0,94229.0,0.053128]
[1735672593899,0.07888817,94241.0,94240.0,0.053122]
[1735672594094,0.05471306,94241.0,94240.0,0.053122]
[1735672594391,0.00159206,94241.0,94240.0,0.053122]
[1735672598591,0.053123,94239.0,94235.0,0.053124]
[1735672598798,0.00159206,94241.0,94235.0,0.053124]
[1735672598799,0.053124,94237.0,94235.0,0.053124]
[1735672598996,0.053124,94237.0,94228.0,0.3608]
[1735672599296,0.053124,94237.0,94236.0,0.053124]
[1735672600494,0.00159206,94241.0,94228.0,0.3608]
[1735672600694,0.053123,94238.0,94233.0,0.053126]
[1735672600999,0.053124,94237.0,94234.0,0.053125]
[1735672601305,0.00159206,94241.0,94236.0,0.002]
[1735672601804,0.3608,94239.0,94233.0,0.003]
[1735672602098,0.053125,94234.0,94233.0,0.004]
[1735672602800,0.053125,94234.0,94233.0,0.003]
[1735672603393,0.053131,94225.0,94221.0,0.053132]
[1735672603603,0.053126,94233.0,94221.0,0.053132]
[1735672603901,0.05313,94225.0,94221.0,0.053132]
[1735672604099,0.053125,94234.0,94221.0,0.053132]
[1735672604295,0.053131,94224.0,94221.0,0.053132]
[1735672604506,0.053131,94224.0,94222.0,0.053132]
[1735672605004,0.001,94225.0,94221.0,0.005]
[1735672605197,0.001,94225.0,94224.0,0.053131]